[Event "IIFL Wealth 4th Mumbai Open"]
[Site "Mumbai"]
[Date "2019.01.03"]
[Round "5"]
[White "Rushyendra Chowdary Kantipudi"]
[Black "Krishnan, Ritvik"]
[Result "1-0"]
[ECO "B34"]
[WhiteElo "1527"]
[BlackElo "1812"]
[Annotator "NA"]
[PlyCount "132"]
[EventDate "2018.12.30"]
[EventType "swiss"]
[EventCountry "IND"]
[SourceTitle "playchess.com"]
[Source "ChessBase"]
[SourceQuality "1"]
[TimeControl "40/5400+30:1800+30"]

1. e4 {[%emt 0:00:00]} c5 {[%emt 0:00:00]} 2. Nf3 {[%emt 0:00:00]} Nc6 3. d4 {[%emt 0:01:08]} cxd4 {[%emt 0:00:03]} 4. Nxd4 {[%emt 0:00:24]} Nf6 {[%emt 0:01:19]} 5. Nf3 {[%emt 0:00:36]} Ng8 {[%emt 0:00:00]} 6. Nd4 {[%emt 0:00:24]} Nf6 {[%emt 0:01:00]} 7. Nf3 {[%emt 0:00:36]} Ng8 {[%emt 0:00:00]} 8. Nd4 {[%emt 0:00:24]} Nf6 {[%emt 0:01:00]} 9. Nf3 {[%emt 0:00:36]} Ng8 {[%emt 0:00:00]} 10. Nd4 {[%emt 0:00:24]} Nf6 {[%emt 0:01:00]} 11. Nf3 {[%emt 0:00:36]} Ng8 {[%emt 0:00:00]} 12. Nd4 {[%emt 0:00:24]} Nf6 {[%emt 0:01:00]} 13. Nf3 {[%emt 0:00:36]} Ng8 {[%emt 0:00:00]} 14. Nd4 {[%emt 0:00:24]} Nf6 {[%emt 0:01:00]} 15. Nf3 {[%emt 0:00:36]} Ng8 {[%emt 0:00:00]} 16. Nd4 {[%emt 0:00:24]} Nf6 {[%emt 0:00:00]} 17. Nc3 {[%emt 0:01:51]} e5 {[%emt 0:00:26]} 18. Ndb5 {[%emt 0:02:31]} d6 {[%emt 0:00:09]} 19. Bg5 {[%emt 0:00:17]} a6 {[%emt 0:00:00]} 20. Bxf6 {[%emt 0:02:07]} gxf6 {[%emt 0:00:13]} 21. Na3 {[%emt 0:09:21]} f5 {[%emt 0:00:09]} 22. Bc4 {[%emt 0:05:32]} Bg7 {[%emt 0:01:59]} 23. Bf1 {[%emt 0:00:00]} Bf8 {[%emt 0:00:00]} 24. Bc4 {[%emt 0:01:00]} Bg7 {[%emt 0:01:00]} 25. Bf1 {[%emt 0:00:00]} Bf8 {[%emt 0:00:00]} 26. Bc4 {[%emt 0:01:00]} Bg7 {[%emt 0:00:17]} 27. Qh5 {[%emt 0:00:00]} Bf8 {[%emt 0:00:00]} 28. Qd1 {[%emt 0:01:00]} Bg7 {[%emt 0:01:00]} 29. Qh5 {[%emt 0:00:00]} Bf8 {[%emt 0:00:00]} 30. Qd1 {[%emt 0:01:00]} Bg7 {[%emt 0:01:00]} 31. Qh5 {[%emt 0:00:00]} O-O {[%emt 0:01:15]} 32. exf5 {[%emt 0:05:46]} Nd4 {[%emt 0:00:33]} 33. Bd3 {[%emt 0:00:00]} Nc6 {[%emt 0:00:23]} 34. Bc4 {[%emt 0:01:00]} Nd4 {[%emt 0:00:37]} 35. Bd3 {[%emt 0:00:00]} Nc6 {[%emt 0:00:23]} 36. Bc4 {[%emt 0:01:00]} Nd4 {[%emt 0:00:37]} 37. Bd3 {[%emt 0:03:37]} Nc6 {[%emt 0:00:23]} 38. Bc4 {[%emt 0:00:00]} Nd4 {[%emt 0:00:37]} 39. Bd3 {[%emt 0:01:00]} Nc6 {[%emt 0:00:23]} 40. Bc4 {[%emt 0:00:00]} Nd4 {[%emt 0:00:37]} 41. Bd3 {[%emt 0:31:00]} Nc6 {[%emt 0:30:23]} 42. Bc4 {[%emt 0:00:00]} Nd4 {[%emt 0:00:37]} 43. Bd3 {[%emt 0:01:00]} Nc6 {[%emt 0:00:23]} 44. Bc4 {[%emt 0:00:00]} Nd4 {[%emt 0:00:37]} 45. Bd3 {[%emt 0:00:00]} Nc6 {[%emt 0:00:23]} 46. Bc4 {[%emt 0:00:00]} Nd4 {[%emt 0:00:37]} 47. Bd3 {[%emt 0:00:00]} Nc6 {[%emt 0:00:23]} 48. Bc4 {[%emt 0:00:00]} Nd4 {[%emt 0:00:37]} 49. Bd3 {[%emt 0:00:00]} Nc6 {[%emt 0:00:23]} 50. Bc4 {[%emt 0:00:23]} Nd4 {[%emt 0:00:37]} 51. Bd3 {[%emt 0:03:37]} Nc6 {[%emt 0:00:23]} 52. Bc4 {[%emt 0:00:00]} Nd4 {[%emt 0:00:37]} 53. Bd3 {[%emt 0:01:00]} Nc6 {[%emt 0:00:23]} 54. Bc4 {[%emt 0:00:00]} Nd4 {[%emt 0:00:37]} 55. Bd3 {[%emt 0:00:00]} Nc6 {[%emt 0:00:23]} 56. Bc4 {[%emt 0:00:00]} Nd4 {[%emt 0:00:37]} 57. Bd3 {[%emt 0:00:00]} Nc6 {[%emt 0:00:23]} 58. Bc4 {[%emt 0:00:00]} Nd4 {[%emt 0:00:37]} 59. Bd3 {[%emt 0:00:00]} Nc6 {[%emt 0:00:23]} 60. Bc4 {[%emt 0:00:23]} Nd4 {[%emt 0:00:37]} 61. Bd3 {[%emt 0:00:00]} Nc6 {[%emt 0:00:23]} 62. Bc4 {[%emt 0:01:00]} Nd4 {[%emt 0:00:37]} 63. Bd3 {[%emt 0:03:37]} f6 {[%emt 0:11:42]} 64. O-O {[%emt 0:02:20]} b5 {[%emt 0:02:50]} 65. Nd5 {[%emt 0:05:50]} Bd7 {[%emt 0:21:33]} 66. c3 Nc6 {[%emt 0:00:29]} 1-0

[Event "IIFL Wealth 4th Mumbai Open"]
[Site "Mumbai"]
[Date "2019.01.03"]
[Round "5"]
[White "Aditya, Ramanathan"]
[Black "Dave, Sneh"]
[Result "1-0"]
[ECO "C54"]
[WhiteElo "1493"]
[BlackElo "1851"]
[Annotator "NA"]
[PlyCount "69"]
[EventDate "2018.12.30"]
[EventType "swiss"]
[EventCountry "IND"]
[SourceTitle "playchess.com"]
[Source "ChessBase"]
[SourceQuality "1"]
[TimeControl "40/5400+30:1800+30"]

1. e4 e5 2. Nf3 Nc6 3. d4 exd4 4. Bc4 Bc5 5. c3 Nf6 6. e5 d5 7. Bb5 Ne4 8. cxd4 Bb6 9. O-O O-O 10. Bxc6 bxc6 11. Be3 Bg4 12. h3 Bh5 13. Nc3 f6 14. g4 Bg6 15. exf6 Qxf6 16. Nxe4 Bxe4 17. Ne5 Qh4 18. Kh2 Rae8 19. f4 Qh6 20. Qd2 g5 21. fxg5 Qd6 22. Bf4 Qe6 23. Rac1 Qc8 24. g6 hxg6 25. Bh6 Rxf1 26. Rxf1 Bc5 27. dxc5 Rxe5 28. Rf8+ Qxf8 29. Bxf8 Re8 30. Bh6 Kh7 31. Qf4 Re7 32. Qf8 Rd7 33. Qe8 Kxh6 34. Qxd7 Kg5 35. Qf7 1-0

[Event "IIFL Wealth 4th Mumbai Open"]
[Site "Mumbai"]
[Date "2019.01.03"]
[Round "5"]
[White "Gupta, R K"]
[Black "Joglekar, Abhijit"]
[Result "0-1"]
[ECO "C53"]
[WhiteElo "1480"]
[BlackElo "1692"]
[Annotator "NA"]
[PlyCount "132"]
[EventDate "2018.12.30"]
[EventType "swiss"]
[EventCountry "IND"]
[SourceTitle "playchess.com"]
[Source "ChessBase"]
[SourceQuality "1"]
[TimeControl "40/5400+30:1800+30"]

1. e4 e5 {[%emt 0:12:04]} 2. Nf3 {[%emt 0:00:01]} Nc6 {[%emt 0:00:04]} 3. Bc4 {[%emt 0:00:12]} Bc5 {[%emt 0:00:06]} 4. c3 {[%emt 0:00:14]} d6 {[%emt 0:02:21]} 5. O-O Nf6 6. d4 {[%emt 0:03:23]} exd4 {[%emt 0:00:44]} 7. cxd4 Bb6 8. Bg5 {[%emt 0:01:26]} O-O {[%emt 0:01:23]} 9. Nc3 {[%emt 0:00:07]} Bg4 {[%emt 0:01:00]} 10. Nd5 {[%emt 0:00:31]} Bxd4 {[%emt 0:06:02]} 11. h3 Bxf3 12. Qxf3 {[%emt 0:12:20]} h6 {[%emt 0:05:05]} 13. Bxf6 {[%emt 0:00:11]} Bxf6 {[%emt 0:00:07]} 14. Nxf6+ {[%emt 0:00:20]} Qxf6 {[%emt 0:00:16]} 15. Qxf6 {[%emt 0:00:53]} gxf6 {[%emt 0:00:03]} 16. f4 {[%emt 0:01:36]} Nb4 {[%emt 0:01:13]} 17. a3 {[%emt 0:01:08]} Nc6 {[%emt 0:01:39]} 18. Bd5 {[%emt 0:00:53]} Nd8 {[%emt 0:01:05]} 19. Rad1 {[%emt 0:00:41]} Rb8 {[%emt 0:00:42]} 20. f5 {[%emt 0:00:17]} Re8 {[%emt 0:00:36]} 21. Rf4 {[%emt 0:00:14]} Kh7 {[%emt 0:02:08]} 22. Rg4 {[%emt 0:00:10]} Rg8 {[%emt 0:00:21]} 23. Kf2 {[%emt 0:00:12]} Rxg4 {[%emt 0:00:25]} 24. hxg4 {[%emt 0:01:02]} Kg7 {[%emt 0:00:09]} 25. Kf3 {[%emt 0:00:06]} Nc6 {[%emt 0:00:25]} 26. Bxc6 {[%emt 0:02:49]} bxc6 {[%emt 0:00:06]} 27. Rd2 c5 28. g3 {[%emt 0:02:22]} a5 {[%emt 0:02:53]} 29. Kf4 {[%emt 0:00:43]} Rb3 {[%emt 0:01:31]} 30. Rc2 {[%emt 0:00:24]} a4 {[%emt 0:08:15]} 31. Rd2 {[%emt 0:02:57]} Kf8 {[%emt 0:00:33]} 32. Rh2 Kg7 33. Rd2 {[%emt 0:01:38]} Kh7 {[%emt 0:00:51]} 34. Rc2 {[%emt 0:00:53]} Rd3 {[%emt 0:00:22]} 35. Re2 {[%emt 0:00:48]} Rd4 {[%emt 0:01:11]} 36. Kf3 {[%emt 0:00:46]} Rd3+ {[%emt 0:00:19]} 37. Kf4 {[%emt 0:00:16]} Rb3 {[%emt 0:00:40]} 38. Rd2 {[%emt 0:00:29]} Kg7 {[%emt 0:02:03]} 39. Rc2 {[%emt 0:00:09]} Kf8 {[%emt 0:01:02]} 40. Rh2 {[%emt 0:00:26]} Ke7 {[%emt 0:01:01]} 41. Rxh6 {[%emt 0:31:23]} Rxb2 {[%emt 0:30:09]} 42. g5 {[%emt 0:00:02]} fxg5+ {[%emt 0:00:24]} 43. Kxg5 {[%emt 0:00:04]} Rb3 {[%emt 0:00:49]} 44. g4 {[%emt 0:00:19]} Rxa3 {[%emt 0:00:13]} 45. f6+ {[%emt 0:00:00]} Ke6 {[%emt 0:00:00]} 46. Rh8 {[%emt 0:00:00]} Rf3 {[%emt 0:00:00]} 47. Re8+ {[%emt 0:00:00]} Kd7 {[%emt 0:00:00]} 48. Re7+ {[%emt 0:00:00]} Kc6 {[%emt 0:00:00]} 49. Rxf7 {[%emt 0:00:00]} a3 {[%emt 0:00:00]} 50. Rh7 {[%emt 0:00:00]} a2 {[%emt 0:00:00]} 51. Rh1 {[%emt 0:00:00]} Kd7 {[%emt 0:00:00]} 52. Kg6 {[%emt 0:00:00]} Ke6 {[%emt 0:00:00]} 53. g5 c4 54. Rh7 {[%emt 0:00:00]} Ke5 {[%emt 0:00:00]} 55. Rh1 {[%emt 0:00:00]} c3 {[%emt 0:00:00]} 56. Kg7 {[%emt 0:00:00]} Ke6 {[%emt 0:00:00]} 57. Rh6 {[%emt 0:00:00]} a1=Q {[%emt 0:02:08]} 58. f7+ {[%emt 0:00:00]} Kd7 {[%emt 0:00:18]} 59. Rf6 {[%emt 0:00:00]} Rxf6 {[%emt 0:04:55]} 60. gxf6 {[%emt 0:00:00]} Qa8 {[%emt 0:00:25]} 61. f8=Q {[%emt 0:00:00]} Qxf8+ {[%emt 0:00:19]} 62. Kxf8 c2 63. f7 c1=Q 64. Kg8 {[%emt 0:00:00]} Qf4 {[%emt 0:01:15]} 65. f8=Q Qxf8+ 66. Kxf8 Ke6 0-1

[Event "IIFL Wealth 4th Mumbai Open"]
[Site "Mumbai"]
[Date "2019.01.03"]
[Round "5"]
[White "Yuti, Mayur Patel"]
[Black "Dhanashree, Pandit"]
[Result "0-1"]
[ECO "C11"]
[WhiteElo "1476"]
[BlackElo "1676"]
[Annotator "NA"]
[PlyCount "62"]
[EventDate "2018.12.30"]
[EventType "swiss"]
[EventCountry "IND"]
[SourceTitle "playchess.com"]
[Source "ChessBase"]
[SourceQuality "1"]
[TimeControl "40/5400+30:1800+30"]

1. e4 {[%emt 0:00:00]} e6 {[%emt 0:00:00]} 2. d4 {[%emt 0:00:00]} d5 {[%emt 0:00:00]} 3. Nc3 {[%emt 0:00:00]} Nf6 {[%emt 0:00:00]} 4. e5 {[%emt 0:00:00]} Nfd7 {[%emt 0:00:00]} 5. f4 {[%emt 0:00:00]} c5 {[%emt 0:00:00]} 6. Nf3 {[%emt 0:00:00]} Nc6 {[%emt 0:00:00]} 7. Be3 {[%emt 0:00:00]} cxd4 {[%emt 0:05:42]} 8. Nxd4 {[%emt 0:00:00]} a6 {[%emt 0:00:12]} 9. Qd2 {[%emt 0:00:11]} Nxd4 {[%emt 0:05:58]} 10. Bxd4 {[%emt 0:00:17]} Qc7 {[%emt 0:09:23]} 11. Be2 {[%emt 0:01:49]} b5 {[%emt 0:09:36]} 12. Bf3 {[%emt 0:00:51]} Bb7 {[%emt 0:00:43]} 13. O-O-O {[%emt 0:02:43]} b4 {[%emt 0:03:41]} 14. Ne2 Nc5 {[%emt 0:10:40]} 15. Kb1 {[%emt 0:03:55]} a5 {[%emt 0:00:27]} 16. g4 {[%emt 0:02:43]} Nd7 {[%emt 0:02:43]} 17. Rhe1 {[%emt 0:01:21]} Bc5 {[%emt 0:07:46]} 18. Ng3 {[%emt 0:06:46]} Rc8 {[%emt 0:04:44]} 19. Bxc5 {[%emt 0:01:16]} Nxc5 {[%emt 0:01:52]} 20. Nh5 {[%emt 0:02:47]} O-O {[%emt 0:11:21]} 21. f5 {[%emt 0:05:18]} Ne4 {[%emt 0:00:36]} 22. Bxe4 {[%emt 0:00:45]} dxe4 {[%emt 0:00:05]} 23. f6 {[%emt 0:16:13]} Rfd8 {[%emt 0:00:09]} 24. Qf2 {[%emt 0:03:01]} Rxd1+ {[%emt 0:00:05]} 25. Rxd1 {[%emt 0:00:05]} e3 {[%emt 0:00:25]} 26. Qe2 {[%emt 0:02:46]} Bf3 {[%emt 0:01:26]} 27. Qd3 {[%emt 0:03:01]} Bxd1 {[%emt 0:00:21]} 28. Qxd1 {[%emt 0:00:08]} Rd8 {[%emt 0:00:26]} 29. Qf3 {[%emt 0:01:17]} Qd7 {[%emt 0:00:56]} 30. Qxe3 {[%emt 0:00:54]} Qd1+ {[%emt 0:00:07]} 31. Qc1 {[%emt 0:00:11]} Qxg4 {[%emt 0:01:03]} 0-1

[Event "IIFL Wealth 4th Mumbai Open"]
[Site "Mumbai"]
[Date "2019.01.03"]
[Round "5"]
[White "Abhinav Dubey"]
[Black "Devesh, Anand Naik"]
[Result "0-1"]
[ECO "B40"]
[WhiteElo "1425"]
[BlackElo "1763"]
[Annotator "NA"]
[PlyCount "120"]
[EventDate "2018.12.30"]
[EventType "swiss"]
[EventCountry "IND"]
[SourceTitle "playchess.com"]
[Source "ChessBase"]
[SourceQuality "1"]
[TimeControl "40/5400+30:1800+30"]

1. e4 {[%emt 0:00:00]} c5 {[%emt 0:00:00]} 2. Nf3 {[%emt 0:00:00]} e6 {[%emt 0:00:00]} 3. d3 {[%emt 0:00:00]} Nc6 {[%emt 0:00:00]} 4. Nbd2 {[%emt 0:00:00]} g6 {[%emt 0:00:00]} 5. g3 {[%emt 0:00:00]} Bg7 {[%emt 0:00:00]} 6. Bg2 {[%emt 0:00:02]} Nf6 {[%emt 0:00:35]} 7. O-O {[%emt 0:00:08]} O-O {[%emt 0:00:07]} 8. c3 {[%emt 0:01:02]} d5 {[%emt 0:01:15]} 9. e5 {[%emt 0:00:32]} Nd7 {[%emt 0:00:09]} 10. d4 {[%emt 0:00:05]} b5 {[%emt 0:01:32]} 11. Re1 {[%emt 0:01:05]} a5 {[%emt 0:00:37]} 12. Nf1 {[%emt 0:01:34]} b4 {[%emt 0:05:39]} 13. Bg5 {[%emt 0:04:29]} Qb6 {[%emt 0:01:49]} 14. Qd2 {[%emt 0:00:19]} Ba6 {[%emt 0:03:00]} 15. Bh6 {[%emt 0:01:36]} Rfb8 {[%emt 0:00:49]} 16. Qf4 {[%emt 0:01:39]} Bxh6 {[%emt 0:10:34]} 17. Qxh6 {[%emt 0:00:53]} cxd4 {[%emt 0:00:18]} 18. cxd4 {[%emt 0:01:06]} Bxf1 {[%emt 0:02:01]} 19. Rxf1 {[%emt 0:00:28]} Nxd4 {[%emt 0:01:34]} 20. Ng5 {[%emt 0:00:19]} Nf8 {[%emt 0:00:11]} 21. g4 {[%emt 0:02:06]} Nc6 {[%emt 0:06:18]} 22. Rae1 {[%emt 0:01:13]} Qd4 {[%emt 0:01:38]} 23. Re3 {[%emt 0:15:39]} Nxe5 {[%emt 0:07:15]} 24. h3 {[%emt 0:01:04]} Nc4 {[%emt 0:05:48]} 25. Re2 {[%emt 0:01:22]} Qf4 {[%emt 0:09:01]} 26. Qh4 {[%emt 0:01:13]} Ne5 {[%emt 0:04:03]} 27. Rc2 {[%emt 0:01:23]} f6 {[%emt 0:02:44]} 28. Nxe6 {[%emt 0:02:09]} Nxe6 {[%emt 0:00:20]} 29. Bxd5 {[%emt 0:00:03]} Nf3+ {[%emt 0:00:58]} 30. Bxf3 {[%emt 0:00:03]} Qxf3 {[%emt 0:00:09]} 31. Qg3 {[%emt 0:00:18]} Nd4 {[%emt 0:06:20]} 32. Qxf3 {[%emt 0:00:03]} Nxf3+ {[%emt 0:00:07]} 33. Kg2 {[%emt 0:00:07]} Nd4 {[%emt 0:00:40]} 34. Rc7 {[%emt 0:00:06]} Nb5 {[%emt 0:00:44]} 35. Re7 {[%emt 0:00:09]} Ra7 {[%emt 0:00:27]} 36. Rfe1 {[%emt 0:00:07]} Rbb7 {[%emt 0:01:20]} 37. Re8+ {[%emt 0:00:08]} Kg7 {[%emt 0:00:17]} 38. Rd8 {[%emt 0:00:10]} Re7 {[%emt 0:03:41]} 39. Rc1 {[%emt 0:00:09]} Rac7 {[%emt 0:00:53]} 40. Rcd1 {[%emt 0:00:00]} Na7 {[%emt 0:00:00]} 41. R8d5 {[%emt 0:00:37]} Nc6 {[%emt 0:02:50]} 42. Rc1 {[%emt 0:00:05]} Ne5 {[%emt 0:01:48]} 43. Rxc7 {[%emt 0:00:13]} Rxc7 {[%emt 0:00:10]} 44. Rxa5 {[%emt 0:00:03]} Rc2 {[%emt 0:00:27]} 45. b3 {[%emt 0:00:15]} Nd3 {[%emt 0:00:17]} 46. Ra7+ {[%emt 0:00:24]} Kh6 {[%emt 0:00:08]} 47. Kf3 {[%emt 0:01:27]} Nc1 {[%emt 0:00:55]} 48. Ra6 {[%emt 0:00:29]} Rxa2 {[%emt 0:01:23]} 49. Rxf6 {[%emt 0:00:05]} Nxb3 {[%emt 0:00:40]} 50. Rf7 {[%emt 0:00:06]} g5 {[%emt 0:03:21]} 51. Rb7 {[%emt 0:00:11]} Nd2+ {[%emt 0:00:30]} 52. Ke3 {[%emt 0:00:08]} b3 {[%emt 0:00:57]} 53. Rb6+ {[%emt 0:00:15]} Kg7 {[%emt 0:00:08]} 54. Rb7+ {[%emt 0:00:02]} Kf6 {[%emt 0:00:20]} 55. f4 {[%emt 0:00:05]} b2 {[%emt 0:02:56]} 56. fxg5+ {[%emt 0:00:04]} Kxg5 {[%emt 0:00:40]} 57. Rb5+ {[%emt 0:00:04]} Kf6 {[%emt 0:01:03]} 58. Rb6+ {[%emt 0:00:02]} Ke5 {[%emt 0:00:15]} 59. Rb5+ {[%emt 0:00:06]} Kd6 {[%emt 0:00:38]} 60. Kxd2 {[%emt 0:02:28]} b1=Q+ 0-1

[Event "IIFL Wealth 4th Mumbai Open"]
[Site "Mumbai"]
[Date "2019.01.03"]
[Round "5"]
[White "Amrit, Raunak"]
[Black "Saketh, Pedagandham"]
[Result "1-0"]
[ECO "B22"]
[WhiteElo "1410"]
[BlackElo "1693"]
[Annotator "NA"]
[PlyCount "29"]
[EventDate "2018.12.30"]
[EventType "swiss"]
[EventCountry "IND"]
[SourceTitle "playchess.com"]
[Source "ChessBase"]
[SourceQuality "1"]
[TimeControl "40/5400+30:1800+30"]

1. e4 {[%emt 0:00:00]} c5 {[%emt 0:06:13]} 2. c3 {[%emt 0:00:00]} d6 {[%emt 0:00:29]} 3. d4 {[%emt 0:00:01]} Nf6 {[%emt 0:00:14]} 4. Bd3 {[%emt 0:00:18]} Nc6 {[%emt 0:00:25]} 5. Nf3 {[%emt 0:00:35]} Bg4 {[%emt 0:00:31]} 6. Be3 {[%emt 0:00:39]} c4 {[%emt 0:06:36]} 7. Bxc4 {[%emt 0:01:10]} Nxe4 {[%emt 0:00:08]} 8. Qb3 {[%emt 0:10:51]} e6 {[%emt 0:13:25]} 9. Qxb7 {[%emt 0:01:40]} Rc8 {[%emt 0:00:17]} 10. d5 {[%emt 0:00:22]} Be7 {[%emt 0:31:04]} 11. dxc6 {[%emt 0:00:47]} d5 {[%emt 0:00:14]} 12. Qd7+ {[%emt 0:00:22]} Qxd7 {[%emt 0:01:03]} 13. cxd7+ {[%emt 0:00:07]} Kxd7 {[%emt 0:00:49]} 14. Bb5+ {[%emt 0:00:28]} Kc7 {[%emt 0:00:05]} 15. Be2 {[%emt 0:06:18]} 1-0

[Event "IIFL Wealth 4th Mumbai Open"]
[Site "Mumbai"]
[Date "2019.01.03"]
[Round "5"]
[White "Ananya, Arumbakkam"]
[Black "Pawar, Harshit"]
[Result "0-1"]
[ECO "B01"]
[WhiteElo "1405"]
[BlackElo "1719"]
[Annotator "NA"]
[PlyCount "110"]
[EventDate "2018.12.30"]
[EventType "swiss"]
[EventCountry "IND"]
[SourceTitle "playchess.com"]
[Source "ChessBase"]
[SourceQuality "1"]
[TimeControl "40/5400+30:1800+30"]

1. e4 d5 2. exd5 Nf6 3. Bb5+ Bd7 4. Be2 Nxd5 5. d4 e6 6. Nf3 Bc6 7. O-O Nd7 8. a3 b6 9. c4 N5f6 10. Nc3 Bb7 11. Bf4 Bd6 12. Qd2 Nf8 13. Nb5 Ng6 14. Bxd6 cxd6 15. Qb4 Ne4 16. Bd3 a5 17. Qe1 Nf6 18. d5 e5 19. Nfd4 Ne7 20. Nf5 Nxf5 21. Bxf5 O-O 22. b4 Ba6 23. a4 Bxb5 24. axb5 Qc7 25. Bd3 e4 26. Be2 axb4 27. Qxb4 Nd7 28. Ra3 Ra5 29. Rfa1 Rfa8 30. Rxa5 bxa5 31. Qb1 f5 32. g4 Qb6 33. Kg2 Nc5 34. Ra3 fxg4 35. Bxg4 Rf8 36. f3 Nd3 37. Qg1 Qd8 38. fxe4 Qg5 39. Rxd3 Qxg4+ 40. Rg3 Qxe4+ 41. Kh3 Qf5+ 42. Kg2 h5 43. h4 Kh8 44. Qe1 Qc2+ 45. Kh3 Qxc4 46. Rxg7 Qc8+ 47. Kh2 Kxg7 48. Qe7+ Rf7 49. Qg5+ Kf8 50. Qh6+ Ke7 51. Qg5+ Kd7 52. Qxh5 Qc2+ 53. Kh3 Qd3+ 54. Kg2 Rg7+ 55. Kh1 Qh3# 0-1

[Event "IIFL Wealth 4th Mumbai Open"]
[Site "Mumbai"]
[Date "2019.01.03"]
[Round "5"]
[White "Vaval Aaditi"]
[Black "Kohad Dipesh"]
[Result "1/2-1/2"]
[ECO "C02"]
[WhiteElo "1367"]
[BlackElo "1683"]
[Annotator "NA"]
[PlyCount "62"]
[EventDate "2018.12.30"]
[EventType "swiss"]
[EventCountry "IND"]
[SourceTitle "playchess.com"]
[Source "ChessBase"]
[SourceQuality "1"]
[TimeControl "40/5400+30:1800+30"]

1. e4 e6 2. d4 d5 3. e5 c5 4. c3 Nc6 5. Nf3 Qb6 6. a3 c4 7. Be2 Bd7 8. O-O Na5 9. Nbd2 Ne7 10. Rb1 Rc8 11. Ne1 Nb3 12. Nxb3 Ba4 13. Qd2 Bxb3 14. Nc2 Nc6 15. Ne3 Na5 16. Qe1 h5 17. f4 g6 18. Bd1 Bxd1 19. Qxd1 Nb3 20. Nc2 a5 21. Na1 Nxa1 22. Rxa1 Qc6 23. Bd2 a4 24. Be1 Be7 25. h4 b5 26. g3 Bd8 27. Bf2 Be7 28. Be1 Bd8 29. Bf2 Be7 30. Be1 Bd8 31. Bf2 Be7 1/2-1/2